[Event "*** Titled Tuesday Blitz"]
[Site "Chess.com"]
[Date "2020.01.07"]
[Round "8"]
[White "wadsy27"]
[Black "Lifeek"]
[Result "1-0"]
[WhiteElo "2472"]
[BlackElo "2257"]
[TimeControl "180+2"]
[EndTime "14:52:41 PST"]
[Termination "wadsy27 won by checkmate"]

1. Nf3 {[%clk 0:03:01.9]} 1... Nf6 {[%clk 0:02:59]} 2. g3 {[%clk 0:03:02]} 2...
d5 {[%clk 0:02:59.2]} 3. Bg2 {[%clk 0:03:03.1]} 3... c5 {[%clk 0:03:00.3]} 4.
O-O {[%clk 0:03:04]} 4... Nc6 {[%clk 0:03:01.3]} 5. c4 {[%clk 0:03:05.5]} 5...
e6 {[%clk 0:02:59.8]} 6. b3 {[%clk 0:03:04.3]} 6... Be7 {[%clk 0:02:50.4]} 7. e3
{[%clk 0:03:05.4]} 7... O-O {[%clk 0:02:46]} 8. Bb2 {[%clk 0:03:05.9]} 8... b6
{[%clk 0:02:43]} 9. Nc3 {[%clk 0:03:05.8]} 9... Bb7 {[%clk 0:02:43.5]} 10. cxd5
{[%clk 0:03:06.8]} 10... Nxd5 {[%clk 0:02:22.9]} 11. Nxd5 {[%clk 0:03:07.1]}
11... exd5 {[%clk 0:02:24.8]} 12. d4 {[%clk 0:03:07.9]} 12... Bf6 {[%clk
0:02:24.8]} 13. Ne5 {[%clk 0:03:02.6]} 13... cxd4 {[%clk 0:02:08.4]} 14. Nxc6
{[%clk 0:03:03.1]} 14... Bxc6 {[%clk 0:02:09.9]} 15. Bxd4 {[%clk 0:03:04.1]}
15... Rc8 {[%clk 0:02:07.9]} 16. Rc1 {[%clk 0:03:02.3]} 16... Bb5 {[%clk
0:01:28.4]} 17. Rxc8 {[%clk 0:03:01.3]} 17... Qxc8 {[%clk 0:01:30.3]} 18. Bxf6
{[%clk 0:02:50.7]} 18... Bxf1 {[%clk 0:01:28]} 19. Bxf1 {[%clk 0:02:51.6]} 19...
gxf6 {[%clk 0:01:28.6]} 20. Qxd5 {[%clk 0:02:52.6]} 20... Rd8 {[%clk 0:01:28.8]}
21. Qf3 {[%clk 0:02:44.9]} 21... Qc1 {[%clk 0:01:12.3]} 22. Kg2 {[%clk
0:02:45.7]} 22... Qb2 {[%clk 0:01:11]} 23. Bc4 {[%clk 0:02:23.6]} 23... Rd2
{[%clk 0:01:01.3]} 24. h4 {[%clk 0:02:24.6]} 24... Qe5 {[%clk 0:00:43.2]} 25.
Qb7 {[%clk 0:02:14.9]} 25... Qe8 {[%clk 0:00:33.5]} 26. h5 {[%clk 0:02:09.3]}
26... Kg7 {[%clk 0:00:26]} 27. Bd5 {[%clk 0:01:55.2]} 27... Kh6 {[%clk
0:00:15.4]} 28. e4 {[%clk 0:01:51.2]} 28... Qe5 {[%clk 0:00:10.3]} 29. Qxf7
{[%clk 0:01:48.8]} 29... Qd4 {[%clk 0:00:11.4]} 30. Qf8+ {[%clk 0:01:46.3]}
30... Kxh5 {[%clk 0:00:06.1]} 31. Bf7+ {[%clk 0:01:47.1]} 31... Kg5 {[%clk
0:00:07.1]} 32. Qg7# {[%clk 0:01:48.2]} 1-0

[Event "*** Titled Tuesday Blitz"]
[Site "Chess.com"]
[Date "2020.01.07"]
[Round "8"]
[White "Glufs"]
[Black "Kumi29"]
[Result "0-1"]
[WhiteElo "2370"]
[BlackElo "2507"]
[TimeControl "180+2"]
[EndTime "14:52:49 PST"]
[Termination "Kumi29 won by resignation"]

1. Nf3 {[%clk 0:03:01.9]} 1... b6 {[%clk 0:02:59.7]} 2. c4 {[%clk 0:02:59.5]}
2... Bb7 {[%clk 0:03:00]} 3. Nc3 {[%clk 0:03:00.5]} 3... e6 {[%clk 0:03:00.6]}
4. a3 {[%clk 0:02:50.6]} 4... f5 {[%clk 0:03:00.5]} 5. d4 {[%clk 0:02:50.8]}
5... Nf6 {[%clk 0:03:01.4]} 6. Bg5 {[%clk 0:02:50.3]} 6... Be7 {[%clk
0:03:02.3]} 7. e3 {[%clk 0:02:49.1]} 7... O-O {[%clk 0:03:03.3]} 8. Be2 {[%clk
0:02:49.8]} 8... Ne4 {[%clk 0:03:04.1]} 9. Nxe4 {[%clk 0:02:39.9]} 9... Bxe4
{[%clk 0:02:52.5]} 10. Bxe7 {[%clk 0:02:39.8]} 10... Qxe7 {[%clk 0:02:53.2]} 11.
d5 {[%clk 0:02:34.7]} 11... a5 {[%clk 0:02:51.1]} 12. O-O {[%clk 0:02:30.8]}
12... Na6 {[%clk 0:02:39.5]} 13. Nd4 {[%clk 0:02:05.6]} 13... f4 {[%clk
0:02:33.3]} 14. f3 {[%clk 0:01:59.1]} 14... Bg6 {[%clk 0:02:26.5]} 15. dxe6
{[%clk 0:01:35]} 15... fxe3 {[%clk 0:02:26]} 16. exd7 {[%clk 0:01:30.4]} 16...
Qxd7 {[%clk 0:02:25.4]} 17. f4 {[%clk 0:00:59.6]} 17... Rad8 {[%clk 0:02:22]}
18. Nb5 {[%clk 0:00:51.7]} 18... Qe7 {[%clk 0:02:18.5]} 19. Qe1 {[%clk
0:00:47.9]} 19... a4 {[%clk 0:02:17.5]} 20. Nc3 {[%clk 0:00:40.3]} 20... Nc5
{[%clk 0:02:17.6]} 21. Nd5 {[%clk 0:00:38.7]} 21... Qe4 {[%clk 0:02:00.9]} 22.
Bf3 {[%clk 0:00:38.6]} 22... Qxc4 {[%clk 0:02:01.1]} 23. Nxe3 {[%clk 0:00:39.4]}
23... Qd4 {[%clk 0:01:56.1]} 24. Rd1 {[%clk 0:00:28.1]} 24... Qxb2 {[%clk
0:01:54.5]} 25. Nd5 {[%clk 0:00:18.5]} 25... Bf7 {[%clk 0:01:34.3]} 26. Ne7+
{[%clk 0:00:14.8]} 26... Kh8 {[%clk 0:01:34.8]} 27. Rxd8 {[%clk 0:00:15.2]}
27... Rxd8 {[%clk 0:01:35.6]} 28. Ng6+ {[%clk 0:00:15.3]} 28... Bxg6 {[%clk
0:01:29]} 29. f5 {[%clk 0:00:12.3]} 29... Bxf5 {[%clk 0:01:22.8]} 30. Qh4 {[%clk
0:00:07.3]} 30... Qd4+ {[%clk 0:01:23]} 0-1

[Event "*** Titled Tuesday Blitz"]
[Site "Chess.com"]
[Date "2020.01.07"]
[Round "8"]
[White "vovachesss"]
[Black "Quiet_Desperation"]
[Result "1-0"]
[WhiteElo "2577"]
[BlackElo "2387"]
[TimeControl "180+2"]
[EndTime "14:52:50 PST"]
[Termination "vovachesss won by resignation"]

1. Nf3 {[%clk 0:02:38.8]} 1... d5 {[%clk 0:02:57.7]} 2. b3 {[%clk 0:02:37.1]}
2... Nf6 {[%clk 0:02:47.9]} 3. Bb2 {[%clk 0:02:38.3]} 3... e6 {[%clk 0:02:49.2]}
4. e3 {[%clk 0:02:39.1]} 4... Be7 {[%clk 0:02:50.6]} 5. d4 {[%clk 0:02:40.3]}
5... O-O {[%clk 0:02:51.8]} 6. Nbd2 {[%clk 0:02:41.9]} 6... c6 {[%clk
0:02:45.8]} 7. Bd3 {[%clk 0:02:43.4]} 7... b6 {[%clk 0:02:47]} 8. O-O {[%clk
0:02:44.9]} 8... Nbd7 {[%clk 0:02:48.4]} 9. Qe2 {[%clk 0:02:46.4]} 9... Re8
{[%clk 0:02:48.8]} 10. c4 {[%clk 0:02:47.6]} 10... Bb7 {[%clk 0:02:49]} 11. Rac1
{[%clk 0:02:48.8]} 11... Bd6 {[%clk 0:02:46.8]} 12. Ne5 {[%clk 0:02:45.2]} 12...
c5 {[%clk 0:02:37.4]} 13. f4 {[%clk 0:02:38]} 13... cxd4 {[%clk 0:02:26.3]} 14.
exd4 {[%clk 0:02:38.7]} 14... dxc4 {[%clk 0:02:23.4]} 15. bxc4 {[%clk
0:02:30.2]} 15... Nf8 {[%clk 0:02:13]} 16. Ndf3 {[%clk 0:02:27.3]} 16... Ng6
{[%clk 0:02:08.5]} 17. Ng5 {[%clk 0:02:27.1]} 17... Re7 {[%clk 0:01:29.4]} 18.
c5 {[%clk 0:01:23.9]} 18... bxc5 {[%clk 0:01:22.9]} 19. dxc5 {[%clk 0:01:25.8]}
19... Bc7 {[%clk 0:01:20.6]} 20. c6 {[%clk 0:01:12.8]} 20... Bc8 {[%clk
0:01:20.4]} 21. Rcd1 {[%clk 0:01:09.8]} 21... Nd5 {[%clk 0:01:14.5]} 22. Bxg6
{[%clk 0:00:54.2]} 22... hxg6 {[%clk 0:01:13.5]} 23. Qg4 {[%clk 0:00:53.3]}
23... Bd6 {[%clk 0:00:47.9]} 24. Qh4 {[%clk 0:00:51.3]} 24... Nf6 {[%clk
0:00:47.9]} 25. Nc4 {[%clk 0:00:38.6]} 25... Bc5+ {[%clk 0:00:45.4]} 26. Kh1
{[%clk 0:00:39.5]} 26... Qc7 {[%clk 0:00:43.9]} 27. Bxf6 {[%clk 0:00:40.3]} 1-0

[Event "*** Titled Tuesday Blitz"]
[Site "Chess.com"]
[Date "2020.01.07"]
[Round "8"]
[White "Philosopherrr"]
[Black "francyIM"]
[Result "0-1"]
[WhiteElo "2456"]
[BlackElo "2608"]
[TimeControl "180+2"]
[EndTime "14:52:52 PST"]
[Termination "francyIM won by resignation"]

1. e4 {[%clk 0:03:01.9]} 1... e5 {[%clk 0:02:58.3]} 2. Nf3 {[%clk 0:03:00]} 2...
Nc6 {[%clk 0:02:58.4]} 3. Bb5 {[%clk 0:03:01.1]} 3... a6 {[%clk 0:02:56.8]} 4.
Ba4 {[%clk 0:03:02.2]} 4... Nf6 {[%clk 0:02:56.8]} 5. O-O {[%clk 0:03:03.7]}
5... b5 {[%clk 0:02:57]} 6. Bb3 {[%clk 0:03:03.5]} 6... Bb7 {[%clk 0:02:58.4]}
7. Re1 {[%clk 0:02:56.8]} 7... Bc5 {[%clk 0:02:57.9]} 8. c3 {[%clk 0:02:53.3]}
8... d6 {[%clk 0:02:57.9]} 9. d4 {[%clk 0:02:51]} 9... Bb6 {[%clk 0:02:58.6]}
10. a4 {[%clk 0:02:51.8]} 10... h6 {[%clk 0:02:58.2]} 11. a5 {[%clk 0:02:52]}
11... Nxa5 {[%clk 0:02:56.7]} 12. dxe5 {[%clk 0:02:46.5]} 12... dxe5 {[%clk
0:02:52.4]} 13. Nxe5 {[%clk 0:02:44.4]} 13... Nxb3 {[%clk 0:02:51.7]} 14. Qxb3
{[%clk 0:02:42.9]} 14... O-O {[%clk 0:02:51.9]} 15. Nd2 {[%clk 0:02:35.7]} 15...
Qd6 {[%clk 0:02:35.7]} 16. Nef3 {[%clk 0:02:24.3]} 16... Ng4 {[%clk 0:02:35.9]}
17. Rf1 {[%clk 0:02:23.6]} 17... Rad8 {[%clk 0:02:26.7]} 18. h3 {[%clk 0:02:18]}
18... Nxf2 {[%clk 0:02:25.9]} 19. Rxf2 {[%clk 0:02:12.9]} 19... Bxf2+ {[%clk
0:02:27.8]} 20. Kxf2 {[%clk 0:02:13.6]} 20... Qb6+ {[%clk 0:02:28.5]} 21. Kg3
{[%clk 0:01:51.1]} 21... Rfe8 {[%clk 0:02:25]} 22. Nd4 {[%clk 0:01:39.8]} 22...
c5 {[%clk 0:02:24.7]} 23. N4f3 {[%clk 0:01:38.1]} 23... c4 {[%clk 0:02:24.4]}
24. Qc2 {[%clk 0:01:38.7]} 24... Rd3 {[%clk 0:02:20]} 25. b3 {[%clk 0:01:26.5]}
25... Bxe4 {[%clk 0:02:17.6]} 26. Nxe4 {[%clk 0:01:22.7]} 26... Rxe4 {[%clk
0:02:19.5]} 27. bxc4 {[%clk 0:01:23.1]} 27... bxc4 {[%clk 0:02:18.6]} 28. Rb1
{[%clk 0:01:01.7]} 28... Qg6+ {[%clk 0:02:18.4]} 29. Kh2 {[%clk 0:01:02.5]}
29... Kh7 {[%clk 0:02:19.2]} 30. Rb7 {[%clk 0:00:52.1]} 30... Qd6+ {[%clk
0:02:12.1]} 31. Kg1 {[%clk 0:00:43.9]} 31... Qc5+ {[%clk 0:01:53.6]} 32. Kf1
{[%clk 0:00:41.2]} 32... Qd5 {[%clk 0:01:54.4]} 33. Rb8 {[%clk 0:00:17.7]} 33...
f5 {[%clk 0:01:53.1]} 34. Ba3 {[%clk 0:00:15.3]} 34... Ree3 {[%clk 0:01:50]} 35.
Bb2 {[%clk 0:00:09.8]} 35... Rd1+ {[%clk 0:01:50.1]} 36. Kf2 {[%clk 0:00:10.4]}
36... Rxf3+ {[%clk 0:01:51]} 37. gxf3 {[%clk 0:00:11.3]} 37... Rd2+ {[%clk
0:01:49]} 0-1

[Event "*** Titled Tuesday Blitz"]
[Site "Chess.com"]
[Date "2020.01.07"]
[Round "8"]
[White "ChessyInstinct"]
[Black "Blagorod"]
[Result "1-0"]
[WhiteElo "2466"]
[BlackElo "2132"]
[TimeControl "180+2"]
[EndTime "14:52:58 PST"]
[Termination "ChessyInstinct won by checkmate"]

1. d4 {[%clk 0:03:01.9]} 1... d5 {[%clk 0:02:59.3]} 2. c4 {[%clk 0:03:02.5]}
2... Nc6 {[%clk 0:02:57]} 3. Nf3 {[%clk 0:03:02.5]} 3... Bg4 {[%clk 0:02:56.7]}
4. Nc3 {[%clk 0:03:03.3]} 4... e6 {[%clk 0:02:53.5]} 5. e3 {[%clk 0:02:59.2]}
5... Nf6 {[%clk 0:02:43.9]} 6. Be2 {[%clk 0:02:56.6]} 6... Be7 {[%clk
0:02:39.8]} 7. O-O {[%clk 0:02:55.8]} 7... O-O {[%clk 0:02:40.5]} 8. h3 {[%clk
0:02:55]} 8... Bh5 {[%clk 0:02:40.4]} 9. b3 {[%clk 0:02:51.3]} 9... h6 {[%clk
0:02:01]} 10. Bb2 {[%clk 0:02:48]} 10... a5 {[%clk 0:01:59.4]} 11. a3 {[%clk
0:02:48.8]} 11... b6 {[%clk 0:01:53.3]} 12. Rc1 {[%clk 0:02:49.3]} 12... Nb8
{[%clk 0:01:48.1]} 13. Ne5 {[%clk 0:02:38.2]} 13... Bxe2 {[%clk 0:01:43.3]} 14.
Qxe2 {[%clk 0:02:40.1]} 14... c5 {[%clk 0:01:41.6]} 15. dxc5 {[%clk 0:02:29.9]}
15... bxc5 {[%clk 0:01:32.4]} 16. Rfd1 {[%clk 0:02:25.9]} 16... Qb6 {[%clk
0:01:21.1]} 17. cxd5 {[%clk 0:01:53]} 17... exd5 {[%clk 0:01:12.9]} 18. Nxd5
{[%clk 0:01:46.9]} 18... Nxd5 {[%clk 0:01:09.9]} 19. Rxd5 {[%clk 0:01:48.8]}
19... Qxb3 {[%clk 0:01:10.2]} 20. Nc4 {[%clk 0:01:42.6]} 20... Nc6 {[%clk
0:00:58.3]} 21. Qg4 {[%clk 0:01:38.7]} 21... f6 {[%clk 0:00:18.9]} 22. Qe6+
{[%clk 0:01:34.4]} 22... Kh8 {[%clk 0:00:20.3]} 23. Qxc6 {[%clk 0:01:35.3]}
23... Rfb8 {[%clk 0:00:14]} 24. Rd7 {[%clk 0:01:30.1]} 24... Bf8 {[%clk
0:00:14.6]} 25. Bxf6 {[%clk 0:01:11.5]} 25... Rc8 {[%clk 0:00:11.8]} 26. Qe6
{[%clk 0:00:59.2]} 26... Re8 {[%clk 0:00:12]} 27. Qf7 {[%clk 0:00:58.8]} 27...
gxf6 {[%clk 0:00:08.8]} 28. Qh7# {[%clk 0:00:58.6]} 1-0

[Event "*** Titled Tuesday Blitz"]
[Site "Chess.com"]
[Date "2020.01.07"]
[Round "8"]
[White "Sergey85Rodchenkov"]
[Black "Valk4"]
[Result "1-0"]
[WhiteElo "2463"]
[BlackElo "2287"]
[TimeControl "180+2"]
[EndTime "14:53:05 PST"]
[Termination "Sergey85Rodchenkov won by resignation"]

1. e4 {[%clk 0:03:01.9]} 1... e5 {[%clk 0:03:00.4]} 2. Nf3 {[%clk 0:03:02.2]}
2... Nc6 {[%clk 0:03:01.4]} 3. Bc4 {[%clk 0:03:02.4]} 3... Bc5 {[%clk
0:03:01.2]} 4. c3 {[%clk 0:03:02.7]} 4... Nf6 {[%clk 0:03:01.7]} 5. d3 {[%clk
0:03:04.1]} 5... a6 {[%clk 0:03:01.8]} 6. O-O {[%clk 0:03:05]} 6... Ba7 {[%clk
0:03:01.2]} 7. Bb3 {[%clk 0:03:05.6]} 7... h6 {[%clk 0:02:59.9]} 8. Nbd2 {[%clk
0:03:04.4]} 8... O-O {[%clk 0:03:00.1]} 9. h3 {[%clk 0:03:02.2]} 9... d6 {[%clk
0:02:58.6]} 10. Re1 {[%clk 0:03:02.2]} 10... Be6 {[%clk 0:02:58.5]} 11. Nf1
{[%clk 0:03:00.6]} 11... Qd7 {[%clk 0:02:47.6]} 12. Bc2 {[%clk 0:02:26.4]} 12...
Rfe8 {[%clk 0:02:40.3]} 13. d4 {[%clk 0:02:20.2]} 13... exd4 {[%clk 0:01:55.1]}
14. cxd4 {[%clk 0:02:18.6]} 14... d5 {[%clk 0:01:34.8]} 15. e5 {[%clk
0:02:17.7]} 15... Ne4 {[%clk 0:01:23.2]} 16. Be3 {[%clk 0:02:06.9]} 16... f6
{[%clk 0:01:02.8]} 17. exf6 {[%clk 0:02:03.5]} 17... Nxf6 {[%clk 0:01:04.2]} 18.
Ng3 {[%clk 0:02:01.2]} 18... Kh8 {[%clk 0:00:34.7]} 19. Ne5 {[%clk 0:01:56.9]}
19... Nxe5 {[%clk 0:00:24.4]} 20. dxe5 {[%clk 0:01:56.1]} 20... Ng8 {[%clk
0:00:18.5]} 21. Qd3 {[%clk 0:01:52]} 21... g5 {[%clk 0:00:18.9]} 22. Bxa7 {[%clk
0:01:48.8]} 22... Rxa7 {[%clk 0:00:20.7]} 23. Rad1 {[%clk 0:01:36.5]} 23... Raa8
{[%clk 0:00:20.6]} 24. Qe3 {[%clk 0:01:35.5]} 24... Qf7 {[%clk 0:00:16.7]} 25.
Ne2 {[%clk 0:01:26.6]} 25... Rac8 {[%clk 0:00:16.7]} 26. f4 {[%clk 0:01:26.9]}
26... gxf4 {[%clk 0:00:14.8]} 27. Nxf4 {[%clk 0:01:27.4]} 27... c5 {[%clk
0:00:13.9]} 28. Ng6+ {[%clk 0:01:25.2]} 28... Kg7 {[%clk 0:00:11.2]} 29. Rf1
{[%clk 0:01:26.6]} 29... Qd7 {[%clk 0:00:09.1]} 30. Qg3 {[%clk 0:01:26.1]} 1-0

[Event "*** Titled Tuesday Blitz"]
[Site "Chess.com"]
[Date "2020.01.07"]
[Round "8"]
[White "secretsuperstar7"]
[Black "INLOVEWITHF"]
[Result "1-0"]
[WhiteElo "2258"]
[BlackElo "2404"]
[TimeControl "180+2"]
[EndTime "14:53:10 PST"]
[Termination "secretsuperstar7 won by resignation"]

1. d4 {[%clk 0:03:01.9]} 1... Nf6 {[%clk 0:03:00.3]} 2. c4 {[%clk 0:03:02.1]}
2... g6 {[%clk 0:03:00.2]} 3. Nc3 {[%clk 0:03:01.2]} 3... Bg7 {[%clk 0:03:01.6]}
4. e4 {[%clk 0:03:00]} 4... d6 {[%clk 0:03:03.1]} 5. h3 {[%clk 0:03:00]} 5...
O-O {[%clk 0:03:03.7]} 6. Nf3 {[%clk 0:02:59.8]} 6... e5 {[%clk 0:03:03.2]} 7.
Be3 {[%clk 0:02:57.8]} 7... exd4 {[%clk 0:02:52.5]} 8. Nxd4 {[%clk 0:02:53.6]}
8... Re8 {[%clk 0:02:54.4]} 9. Bd3 {[%clk 0:02:52.2]} 9... Na6 {[%clk
0:02:51.2]} 10. Qf3 {[%clk 0:02:37.6]} 10... Nc5 {[%clk 0:02:35.7]} 11. Bc2
{[%clk 0:02:37.2]} 11... Nfd7 {[%clk 0:02:36.7]} 12. O-O {[%clk 0:02:34.5]}
12... Ne5 {[%clk 0:02:33.3]} 13. Qe2 {[%clk 0:02:34.6]} 13... Nc6 {[%clk
0:02:34.7]} 14. Nxc6 {[%clk 0:02:33.7]} 14... bxc6 {[%clk 0:02:36.6]} 15. Rad1
{[%clk 0:02:29.5]} 15... Qe7 {[%clk 0:02:30.7]} 16. Qd2 {[%clk 0:02:20.6]} 16...
Rb8 {[%clk 0:02:18.7]} 17. a3 {[%clk 0:02:12.4]} 17... Rxb2 {[%clk 0:02:15.4]}
18. Rb1 {[%clk 0:01:56.3]} 18... Nb3 {[%clk 0:01:41]} 19. Qd3 {[%clk 0:01:41.8]}
19... Rxb1 {[%clk 0:01:36.7]} 20. Rxb1 {[%clk 0:01:41.1]} 20... Nc5 {[%clk
0:01:36.8]} 21. Qd2 {[%clk 0:01:36.7]} 21... Ba6 {[%clk 0:01:33.9]} 22. Rb4
{[%clk 0:01:34]} 22... Qe5 {[%clk 0:01:30.2]} 23. Ne2 {[%clk 0:01:19.2]} 23...
Nxe4 {[%clk 0:01:28.5]} 24. Bxe4 {[%clk 0:01:18.1]} 24... Qxe4 {[%clk
0:01:30.4]} 25. c5 {[%clk 0:01:16.9]} 25... Qd5 {[%clk 0:01:21.3]} 26. cxd6
{[%clk 0:01:12.1]} 26... Qxd2 {[%clk 0:01:19.6]} 27. Bxd2 {[%clk 0:01:13.1]}
27... Bxe2 {[%clk 0:01:08.5]} 28. d7 {[%clk 0:01:13.3]} 28... Rd8 {[%clk
0:01:07.4]} 29. Re4 {[%clk 0:01:13.8]} 29... Rxd7 {[%clk 0:00:56.7]} 30. Re8+
{[%clk 0:01:11.7]} 30... Bf8 {[%clk 0:00:47.4]} 31. Bh6 {[%clk 0:01:11.2]} 31...
Rd1+ {[%clk 0:00:38.5]} 32. Kh2 {[%clk 0:01:09.9]} 1-0

[Event "*** Titled Tuesday Blitz"]
[Site "Chess.com"]
[Date "2020.01.07"]
[Round "8"]
[White "Everyfishknows"]
[Black "chessbia"]
[Result "1-0"]
[WhiteElo "2338"]
[BlackElo "2189"]
[TimeControl "180+2"]
[EndTime "14:53:10 PST"]
[Termination "Everyfishknows won by resignation"]

1. Nf3 {[%clk 0:03:01.9]} 1... f5 {[%clk 0:02:57.7]} 2. d3 {[%clk 0:02:59.6]}
2... Nf6 {[%clk 0:02:58.7]} 3. e4 {[%clk 0:02:58.3]} 3... fxe4 {[%clk
0:02:58.6]} 4. dxe4 {[%clk 0:02:56.6]} 4... Nxe4 {[%clk 0:02:59.7]} 5. Bd3
{[%clk 0:02:55.7]} 5... Nf6 {[%clk 0:02:59]} 6. Ng5 {[%clk 0:02:55.8]} 6... d6
{[%clk 0:02:44.9]} 7. Bxh7 {[%clk 0:02:46.2]} 7... c6 {[%clk 0:02:00.5]} 8. Bg6+
{[%clk 0:02:44.7]} 8... Kd7 {[%clk 0:02:01]} 9. Nf7 {[%clk 0:02:42.6]} 9... Qa5+
{[%clk 0:02:01]} 10. Bd2 {[%clk 0:02:42.7]} 10... Qd5 {[%clk 0:01:55.8]} 11.
Nxh8 {[%clk 0:02:38.3]} 11... Qxg2 {[%clk 0:01:56]} 12. Rf1 {[%clk 0:02:33.8]}
12... Kc7 {[%clk 0:01:55]} 13. Bd3 {[%clk 0:02:22.8]} 13... Bg4 {[%clk
0:01:48.4]} 14. Be2 {[%clk 0:02:12.9]} 14... Bf5 {[%clk 0:01:49.3]} 15. Nc3
{[%clk 0:01:56.2]} 15... Nbd7 {[%clk 0:01:45.1]} 16. Bf4 {[%clk 0:01:48.1]}
16... g5 {[%clk 0:01:32.4]} 17. Bg3 {[%clk 0:01:47.1]} 17... Bg7 {[%clk
0:01:14.9]} 18. Nf7 {[%clk 0:01:46.6]} 18... Ne4 {[%clk 0:01:07.5]} 19. Nxe4
{[%clk 0:01:44]} 19... Bxe4 {[%clk 0:01:08.5]} 20. Nxd6 {[%clk 0:01:34.1]} 20...
Ne5 {[%clk 0:00:26.3]} 21. Nc4 {[%clk 0:01:29.2]} 21... Rd8 {[%clk 0:00:21.3]}
22. Qc1 {[%clk 0:01:01.1]} 22... Rd5 {[%clk 0:00:21.6]} 23. Qxg5 {[%clk
0:00:52.3]} 23... Bf6 {[%clk 0:00:21.8]} 24. Bxe5+ {[%clk 0:00:43.4]} 24... Bxe5
{[%clk 0:00:22.7]} 25. Qxg2 {[%clk 0:00:44.1]} 25... Bxg2 {[%clk 0:00:22.6]} 26.
Rg1 {[%clk 0:00:44.6]} 26... Bh3 {[%clk 0:00:19.7]} 27. Nxe5 {[%clk 0:00:44.4]}
27... Rxe5 {[%clk 0:00:21]} 28. Kd2 {[%clk 0:00:44.9]} 1-0

[Event "*** Titled Tuesday Blitz"]
[Site "Chess.com"]
[Date "2020.01.07"]
[Round "8"]
[White "novocane"]
[Black "TheBigBadChessDad"]
[Result "0-1"]
[WhiteElo "2180"]
[BlackElo "2287"]
[TimeControl "180+2"]
[EndTime "14:53:12 PST"]
[Termination "TheBigBadChessDad won by resignation"]

1. d4 {[%clk 0:03:01.8]} 1... Nf6 {[%clk 0:03:00.5]} 2. c4 {[%clk 0:03:02.5]}
2... e6 {[%clk 0:03:01.6]} 3. Nc3 {[%clk 0:03:03.3]} 3... Bb4 {[%clk 0:03:01.9]}
4. e3 {[%clk 0:03:04]} 4... Bxc3+ {[%clk 0:03:02.8]} 5. bxc3 {[%clk 0:03:05.1]}
5... c5 {[%clk 0:03:04]} 6. Bd3 {[%clk 0:03:06]} 6... d6 {[%clk 0:03:05.2]} 7.
e4 {[%clk 0:03:06.8]} 7... Nc6 {[%clk 0:03:06.1]} 8. f4 {[%clk 0:02:48.1]} 8...
e5 {[%clk 0:03:05.1]} 9. Nf3 {[%clk 0:02:12.6]} 9... cxd4 {[%clk 0:02:55.8]} 10.
cxd4 {[%clk 0:02:09.3]} 10... exd4 {[%clk 0:02:51.9]} 11. e5 {[%clk 0:02:00.2]}
11... dxe5 {[%clk 0:02:46.9]} 12. fxe5 {[%clk 0:02:00.8]} 12... Ng4 {[%clk
0:02:34.8]} 13. Bf4 {[%clk 0:01:38.2]} 13... O-O {[%clk 0:02:09]} 14. O-O {[%clk
0:01:33.8]} 14... h6 {[%clk 0:01:52.7]} 15. Rb1 {[%clk 0:01:01.3]} 15... Re8
{[%clk 0:01:49.1]} 16. Rb5 {[%clk 0:00:59]} 16... Ne3 {[%clk 0:01:42.3]} 17.
Bxe3 {[%clk 0:00:26.5]} 17... dxe3 {[%clk 0:01:44.2]} 18. Rd5 {[%clk 0:00:26.9]}
18... Qb6 {[%clk 0:01:42.3]} 19. Qe2 {[%clk 0:00:27.5]} 19... Be6 {[%clk
0:01:39.1]} 20. Bb1 {[%clk 0:00:27.7]} 20... Bxd5 {[%clk 0:01:38.1]} 21. cxd5
{[%clk 0:00:28.6]} 21... Nxe5 {[%clk 0:01:30.1]} 22. Nh4 {[%clk 0:00:27.9]}
22... Ng6 {[%clk 0:01:12.5]} 23. Nf5 {[%clk 0:00:27.9]} 23... Re5 {[%clk
0:01:07.7]} 24. d6 {[%clk 0:00:28.4]} 24... Rd8 {[%clk 0:01:03.7]} 25. Re1
{[%clk 0:00:29]} 25... Rxd6 {[%clk 0:01:03.3]} 26. Nxd6 {[%clk 0:00:29]} 26...
Qxd6 {[%clk 0:01:04.5]} 27. Qc2 {[%clk 0:00:27.9]} 27... Qd2 {[%clk 0:00:56.6]}
28. Qc8+ {[%clk 0:00:16.4]} 28... Kh7 {[%clk 0:00:57.1]} 0-1

[Event "*** Titled Tuesday Blitz"]
[Site "Chess.com"]
[Date "2020.01.07"]
[Round "8"]
[White "Majkelopulos"]
[Black "AleksanderHnydiuk"]
[Result "1-0"]
[WhiteElo "2533"]
[BlackElo "2417"]
[TimeControl "180+2"]
[EndTime "14:53:16 PST"]
[Termination "Majkelopulos won on time"]

1. e4 {[%clk 0:03:01.9]} 1... Nf6 {[%clk 0:03:00.1]} 2. e5 {[%clk 0:02:59.4]}
2... Nd5 {[%clk 0:03:01.2]} 3. d4 {[%clk 0:03:01]} 3... d6 {[%clk 0:03:02]} 4.
c4 {[%clk 0:03:02.6]} 4... Nb6 {[%clk 0:03:02.5]} 5. exd6 {[%clk 0:03:04.3]}
5... exd6 {[%clk 0:03:02.9]} 6. Nc3 {[%clk 0:03:03]} 6... Be7 {[%clk 0:03:03.7]}
7. Bd3 {[%clk 0:03:03.8]} 7... Nc6 {[%clk 0:03:04]} 8. Nge2 {[%clk 0:03:05.1]}
8... Bg4 {[%clk 0:03:03.9]} 9. f3 {[%clk 0:03:06.5]} 9... Bh5 {[%clk 0:03:04.8]}
10. Be3 {[%clk 0:03:07.6]} 10... O-O {[%clk 0:02:59.4]} 11. b3 {[%clk
0:03:04.4]} 11... Bh4+ {[%clk 0:02:52.1]} 12. g3 {[%clk 0:02:53.8]} 12... Bxf3
{[%clk 0:02:48.8]} 13. gxh4 {[%clk 0:02:55]} 13... Bxh1 {[%clk 0:02:42.1]} 14.
Ng3 {[%clk 0:02:26.9]} 14... Qxh4 {[%clk 0:02:40.7]} 15. Qc2 {[%clk 0:02:27.5]}
15... Rfe8 {[%clk 0:02:33.1]} 16. Qf2 {[%clk 0:02:07.4]} 16... Nxd4 {[%clk
0:02:18]} 17. O-O-O {[%clk 0:02:08.4]} 17... Bf3 {[%clk 0:02:03.1]} 18. Bxd4
{[%clk 0:02:07.6]} 18... Bxd1 {[%clk 0:02:03.7]} 19. Nxd1 {[%clk 0:02:09.1]}
19... Nd7 {[%clk 0:01:43.4]} 20. Bxg7 {[%clk 0:02:06.1]} 20... Qg5+ {[%clk
0:01:41.1]} 21. Kb1 {[%clk 0:02:05.2]} 21... Kxg7 {[%clk 0:01:35]} 22. Nf5+
{[%clk 0:02:04.9]} 22... Kh8 {[%clk 0:01:35.6]} 23. Nde3 {[%clk 0:02:06.5]}
23... Ne5 {[%clk 0:01:32.3]} 24. Bc2 {[%clk 0:02:07.7]} 24... Rg8 {[%clk
0:01:30.7]} 25. Qd2 {[%clk 0:02:04.5]} 25... Qf4 {[%clk 0:01:27.4]} 26. Qd5
{[%clk 0:01:56.2]} 26... Qf3 {[%clk 0:01:09]} 27. Qd4 {[%clk 0:01:55.7]} 27...
Rg1+ {[%clk 0:00:58.1]} 28. Kb2 {[%clk 0:01:56.4]} 28... Re1 {[%clk 0:00:58.2]}
29. Qh4 {[%clk 0:01:43.2]} 29... Rg1 {[%clk 0:00:45]} 30. Qf6+ {[%clk
0:01:42.1]} 30... Kg8 {[%clk 0:00:46.2]} 31. Nd5 {[%clk 0:01:35.9]} 31... Kf8
{[%clk 0:00:04.9]} 32. Qh6+ {[%clk 0:01:20.8]} 32... Ke8 {[%clk 0:00:05.3]} 33.
Nxc7+ {[%clk 0:01:21.9]} 33... Kd7 {[%clk 0:00:05.9]} 34. Qxd6+ {[%clk
0:01:22.9]} 34... Kc8 {[%clk 0:00:05.6]} 35. Ne7+ {[%clk 0:01:24]} 1-0